fUSD/lending_fUSD_20260322
["ID","MTS","AMOUNT","RATE_DAILY","PERIOD"]
[408748004,1774189847750,-522.93,0.00015999,2]
[408748006,1774189847760,-522.93,0.00015999,2]
[408748008,1774189847769,-522.93,0.00015999,2]
[408748010,1774189847778,-522.93,0.00015999,2]
[408748012,1774189847787,-522.93,0.00015999,2]
[408748014,1774189847796,-522.93,0.00015999,2]
[408748016,1774189847805,-522.93,0.00015999,2]
[408748018,1774189847814,-522.93,0.00015999,2]
[408748021,1774189847824,-522.93,0.00015999,2]
[408748022,1774189847833,-522.93,0.00015999,2]
[408748024,1774189847842,-522.93,0.00015999,2]
[408748026,1774189847851,-522.93077841,0.00015999,2]
[408748028,1774189847860,-293.37404714,0.00015999,2]
[408748030,1774189847869,-381.76529649,0.00015999,2]
[408748032,1774189847878,-2227.58,0.00015999,2]
[408748033,1774189847887,-2227.58,0.00015999,2]
[408748034,1774189847896,-2227.58,0.00015999,2]
[408748035,1774189847905,-2227.58,0.00015999,2]
[408748036,1774189847915,-2227.58,0.00015999,2]
[408748037,1774189847924,-2227.58,0.00015999,2]
[408748038,1774189847933,-2227.58,0.00015999,2]
[408748039,1774189847943,-2227.58,0.00015999,2]
[408748040,1774189847951,-2227.67,0.00015999,2]
[408748041,1774189847961,-529.42180418,0.00015999,2]
[408748042,1774189847970,-500.0,0.00015999,2]
[408748043,1774189847978,-500.0,0.00015999,2]
[408748044,1774189847987,-604.51450435,0.00015999,2]
[408748045,1774189847996,-523.44,0.00015999,2]
[408748046,1774189848004,-523.44,0.00015999,2]
[408748047,1774189848013,-523.44,0.00015999,2]
[408748048,1774189848024,-523.44,0.00015999,2]
[408748049,1774189848034,-523.44,0.00015999,2]
[408748050,1774189848044,-523.44,0.00015999,2]
[408748051,1774189848053,-523.44,0.00015999,2]
[408748052,1774189848062,-523.44,0.00015999,2]
[408748053,1774189848072,-523.44,0.00015999,2]
[408748054,1774189848082,-523.44,0.00015999,2]
[408748055,1774189848091,-523.44,0.00015999,2]
[408748056,1774189848101,-523.44,0.00015999,2]
[408748057,1774189848110,-523.67679382,0.00015999,2]
[408748058,1774189848119,-416.039852,0.00015999,2]
[408748059,1774189848129,-416.039852,0.00015999,2]
[408748060,1774189848139,-416.039852,0.00015999,2]
[408748061,1774189848150,-416.039852,0.00015999,2]
[408748062,1774189848160,-151.0,0.00015999,2]
[408748063,1774189848169,-151.0,0.00015999,2]
[408748064,1774189848178,-151.0,0.00015999,2]
[408748065,1774189848187,-906.383334,0.00015999,2]
[408748066,1774189848196,-151.0,0.00015999,2]
[408748067,1774189848205,-906.383334,0.00015999,2]
[408748068,1774189848214,-906.383334,0.00015999,2]
[408748069,1774189848223,-189.047472,0.00015999,2]
[408748070,1774189848232,-906.383334,0.00015999,2]
[408748071,1774189848242,-151.0,0.00015999,2]
[408748072,1774189848251,-151.0,0.00015999,2]
[408748073,1774189848261,-151.0,0.00015999,2]
[408748074,1774189848270,-157.385589,0.00015999,2]
[408748075,1774189848279,-837868.42556391,0.00016,2]
[408748076,1774189850078,-66965.77241101,0.00016,2]
[408748077,1774189850090,-2238.0,0.00016,2]
[408748078,1774189850106,-774.6985844,0.00016,2]
[408748079,1774189850440,-600.0,0.00012386,2]
[408748080,1774189850450,-230.217161,0.00015002,2]
[408748081,1774189850459,-1893.13470112,0.00016,2]
[408748082,1774189850495,-600.0,0.00014505,2]
[408748083,1774189850504,-4307.59960843,0.00016,2]
[408748084,1774189850787,-281.0,0.00011252,2]
[408748085,1774189850796,-145.0,0.00011275,2]
[408748086,1774189850807,-340.0,0.00011275,2]
[408748087,1774189850816,-301.0,0.00011297,2]
[408748088,1774189850826,-422.0,0.0001132,2]
[408748089,1774189850835,-447.745054,0.00013424,2]
[408748090,1774189850844,-412.31510469,0.0001531,2]
[408748091,1774189855003,262.0,0.00010395,2]
[408748092,1774189871314,150.0,0.00016,120]
[408748098,1774190036364,175.0,0.0001,2]
[408748099,1774190046707,154.0,0.00010362,2]
[408748100,1774190063082,150.0,0.00016,120]
[408748101,1774190185975,500.0,0.00010213,2]
[408748102,1774190253355,150.0,0.00016,120]
[408748103,1774190342612,-166.66,0.00010579,2]
[408748104,1774190342639,-250.0,0.00010654,2]
[408748105,1774190342779,-8084.03,0.00010654,2]
[408748106,1774190347174,-200.0,0.000108,3]
[408748107,1774190347201,-400.0,0.000109,3]
[408748108,1774190354026,-210.0,0.00010653,2]
[408748109,1774190354055,-150.0,0.00010653,2]
[408748110,1774190354109,-9280.01,0.00010654,2]
[408748111,1774190358445,-5100.0,0.00010654,2]
[408748112,1774190395245,195.0,0.00010085,2]
[408748113,1774190441710,-982.13078782,0.00017,30]
[408748114,1774190443505,150.0,0.00016,120]
[408748115,1774190474018,-734.11,0.000135,7]
[408748116,1774190474039,-524.37,0.000135,14]
[408748117,1774190474071,-600.0,0.000139,5]
[408748118,1774190474094,-2159.38921218,0.000148,5]
[408748119,1774190538898,-179.65425717,0.00015514,7]
[408748120,1774190538925,-1255.394369,0.00015994,7]
[408748121,1774190538956,-1034.092006,0.00016111,7]
[408748122,1774190542478,-300.0,0.00010538,2]
[408748123,1774190542507,-300.0,0.00010538,2]
[408748124,1774190542538,-414.525,0.00010539,2]
[408748125,1774190542657,-7775.96,0.00010539,2]
[408748126,1774190542703,-531.159,0.00010539,2]
[408748127,1774190542732,-228.20571621,0.00010639,2]
[408748128,1774190542760,-300.0,0.00010653,2]
[408748129,1774190542789,-300.0,0.00010653,2]
[408748130,1774190542819,-1200.0,0.00010653,2]
[408748131,1774190542845,-150.0,0.00010653,2]
[408748132,1774190544721,-4581.28056758,0.00010654,2]
[408748133,1774190544782,-3155.28056758,0.00010654,2]
[408748134,1774190544837,-3689.44886484,0.00010654,2]
[408748135,1774190544892,-3236.4853,0.00010654,2]
[408748136,1774190544921,-1027.0394,0.00010654,2]
[408748137,1774190544985,-1472.9606,0.00010654,2]
[408748138,1774190545012,-195.0,0.00010717,2]
[408748139,1774190545045,-500.0,0.00010753,2]
[408748140,1774190545076,-500.0,0.00010753,2]
[408748141,1774190545109,-500.0,0.00010753,2]
[408748142,1774190545142,-500.0,0.00010753,2]
[408748143,1774190545173,-500.0,0.00010753,2]
[408748144,1774190545206,-500.0,0.00010753,2]
[408748145,1774190545238,-164.0888,0.00010753,2]
[408748146,1774190545284,-335.9112,0.00010753,2]
[408748147,1774190545316,-500.0,0.00010753,2]
[408748148,1774190545348,-500.0,0.00010753,2]
[408748149,1774190545381,-500.0,0.00010753,2]
[408748150,1774190545412,-500.0,0.00010753,2]
[408748151,1774190545444,-500.0,0.00010753,2]
[408748152,1774190545477,-500.0,0.00010753,2]
[408748153,1774190545510,-500.0,0.00010753,2]
[408748154,1774190545546,-500.0,0.00010753,2]
[408748155,1774190545598,-500.0,0.00010753,2]
[408748156,1774190546199,-500.0,0.00010753,2]
[408748157,1774190546208,-442.77844775,0.00010753,2]
[408748158,1774190546219,-500.0,0.00010753,2]
[408748159,1774190546229,-500.0,0.00010753,2]
[408748160,1774190546238,-500.0,0.00010753,2]
[408748161,1774190546248,-500.0,0.00010753,2]
[408748162,1774190546259,-500.0,0.00010753,2]
[408748163,1774190546268,-500.0,0.00010753,2]
[408748164,1774190546277,-500.0,0.00010753,2]
[408748165,1774190546286,-500.0,0.00010753,2]
[408748166,1774190546295,-500.0,0.00010753,2]
[408748167,1774190546304,-500.0,0.00010753,2]
[408748168,1774190546313,-125.75625225,0.00010753,2]
[408748169,1774190546328,-374.24374775,0.00010753,2]
[408748170,1774190546337,-500.0,0.00010753,2]
[408748171,1774190546346,-500.0,0.00010753,2]
[408748172,1774190546355,-500.0,0.00010753,2]
[408748173,1774190546365,-500.0,0.00010753,2]
[408748174,1774190546375,-500.0,0.00010753,2]
[408748175,1774190546384,-500.0,0.00010753,2]
[408748176,1774190546394,-315.20511709,0.00010753,2]
[408748177,1774190546416,-184.79488291,0.00010753,2]
[408748178,1774190546426,-500.0,0.00010753,2]
[408748179,1774190546435,-500.0,0.00010753,2]
[408748180,1774190546445,-500.0,0.00010753,2]
[408748181,1774190546454,-500.0,0.00010753,2]
[408748182,1774190546463,-436.31738741,0.00010753,2]
[408748183,1774190546485,-63.68261259,0.00010753,2]
[408748184,1774190546494,-500.0,0.00010753,2]
[408748185,1774190546503,-500.0,0.00010753,2]
[408748186,1774190546512,-500.0,0.00010753,2]
[408748187,1774190546523,-500.0,0.00010753,2]
[408748188,1774190546532,-500.0,0.00010753,2]
[408748189,1774190546541,-500.0,0.00010753,2]
[408748190,1774190546554,-172.80268741,0.00010753,2]
[408748191,1774190546634,-327.19731259,0.00010753,2]
[408748192,1774190546644,-500.0,0.00010753,2]
[408748193,1774190546654,-500.0,0.00010753,2]
[408748194,1774190546663,-500.0,0.00010753,2]
[408748195,1774190546673,-500.0,0.00010753,2]
[408748196,1774190546683,-172.80268741,0.00010753,2]
[408748197,1774190546726,-327.19731259,0.00010753,2]
[408748198,1774190546735,-500.0,0.00010753,2]
[408748199,1774190546744,-500.0,0.00010753,2]
[408748200,1774190546754,-145.76328741,0.00010753,2]
[408748201,1774190546776,-195.0,0.00010753,2]
[408748202,1774190546790,-159.23671259,0.00010753,2]
[408748203,1774190546799,-340.76328741,0.00010753,2]
[408748204,1774190546813,-159.23671259,0.00010753,2]
[408748205,1774190546823,-340.76328741,0.00010753,2]
[408748206,1774190546837,-159.23671259,0.00010753,2]
[408748207,1774190546845,-340.76328741,0.00010753,2]
[408748208,1774190546867,-159.23671259,0.00010753,2]
[408748209,1774190546878,-340.76328741,0.00010753,2]
[408748210,1774190546896,-159.23671259,0.00010753,2]
[408748211,1774190546906,-340.76328741,0.00010753,2]
[408748212,1774190546920,-159.23671259,0.00010753,2]
[408748213,1774190546929,-340.76328741,0.00010753,2]
[408748214,1774190546950,-159.23671259,0.00010753,2]
[408748215,1774190546960,-340.76328741,0.00010753,2]
[408748216,1774190546978,-159.23671259,0.00010753,2]
[408748217,1774190546987,-176.67448741,0.00010753,2]
[408748218,1774190547002,-323.32551259,0.00010753,2]
[408748219,1774190547012,-176.67448741,0.00010753,2]
[408748220,1774190547031,-323.32551259,0.00010753,2]
[408748221,1774190547041,-176.67448741,0.00010753,2]
[408748222,1774190547060,-323.32551259,0.00010753,2]
[408748223,1774190547071,-176.67448741,0.00010753,2]
[408748224,1774190547089,-323.32551259,0.00010753,2]
[408748225,1774190547099,-176.67448741,0.00010753,2]
[408748226,1774190547113,-323.32551259,0.00010753,2]
[408748227,1774190547122,-176.67448741,0.00010753,2]
[408748228,1774190547150,-323.32551259,0.00010753,2]
[408748229,1774190547160,-176.67448741,0.00010753,2]
[408748230,1774190547188,-323.32551259,0.00010753,2]
[408748231,1774190547198,-176.67448741,0.00010753,2]
[408748232,1774190547222,-323.32551259,0.00010753,2]
[408748233,1774190547231,-176.67448741,0.00010753,2]
[408748234,1774190547714,-323.32551259,0.00010753,2]
[408748235,1774190547749,-500.0,0.00010753,2]
[408748236,1774190547782,-500.0,0.00010753,2]
[408748237,1774190547817,-500.0,0.00010753,2]
[408748238,1774190547851,-500.0,0.00010753,2]
[408748239,1774190547886,-500.0,0.00010753,2]
[408748240,1774190547920,-500.0,0.00010753,2]
[408748241,1774190547954,-500.0,0.00010753,2]
[408748242,1774190547987,-450.0,0.00010753,2]
[408748243,1774190548021,-500.0,0.00010753,2]
[408748244,1774190548727,-328.1876,0.00010753,2]
[408748245,1774190548749,-171.8124,0.00010753,2]
[408748246,1774190548759,-328.1876,0.00010753,2]
[408748247,1774190548786,-171.8124,0.00010753,2]
[408748248,1774190548795,-186.00521678,0.00010753,2]
[408748249,1774190548804,-95.54135804,0.00010753,2]
[408748250,1774190550304,-2630.85936783,0.000146,5]
[408748251,1774190562171,-465.66949404,0.000107,2]
[408748252,1774190562207,-270.28916551,0.000107,2]
[408748253,1774190562242,-514.29184142,0.000107,2]
[408748254,1774190562274,-114.28464196,0.00010753,2]
[408748255,1774190562307,-1200.0,0.00010753,2]
[408748256,1774190562338,-938.55,0.00010753,2]
[408748257,1774190562371,-258.63753161,0.00010754,2]
[408748258,1774190562411,-94.69725092,0.00010754,2]
[408748259,1774190562579,-2287.17014908,0.00010754,2]
[408748260,1774190562656,-2287.17014908,0.00010754,2]
[408748261,1774190562678,-5425.66970184,0.00010754,2]
[408748262,1774190562708,-10000.01,0.00010754,2]
[408748263,1774190566114,-10000.01,0.00010754,2]
[408748264,1774190570360,-10000.01,0.00010754,2]
[408748265,1774190570478,-10000.01,0.00010754,2]
[408748267,1774190599517,-10000.01,0.00010754,2]
[408748268,1774190599696,-10000.01,0.00010754,2]
[408748269,1774190599953,-10000.01,0.00010754,2]
[408748270,1774190600055,-10000.01,0.00010754,2]
[408748271,1774190605982,-1046.8329771,0.00010753,2]
[408748272,1774190606015,-3162.80581936,0.00010753,2]
[408748273,1774190606086,-1580.73240708,0.00010753,2]
[408748274,1774190606123,-642.14393702,0.00010753,2]
[408748275,1774190606151,-2671.13458251,0.00010753,2]
[408748276,1774190606224,-3373.45296094,0.00010754,2]
[408748277,1774190606248,-10000.01,0.00010754,2]
[408748278,1774190606308,-10000.01,0.00010754,2]
[408748279,1774190632734,150.0,0.00016,120]
[408748280,1774190820790,212.91,0.00016,120]
[408748281,1774190860733,620.9,9.967e-05,2]
[408748282,1774190950594,3304.22,9.77e-05,2]
[408748283,1774191025934,-1519.89176521,0.00010385,2]
[408748284,1774191025965,-414.84792811,0.00010386,2]
[408748285,1774191025997,-1200.0,0.00010431,2]
[408748298,1774191033787,-1050.19388537,0.00010432,2]
[408748299,1774191033802,-829.38668649,0.00010432,2]
[408748300,1774191033821,-1584.72581846,0.00010432,2]
[408748301,1774191034369,-4938.01207268,0.00010432,2]
[408748302,1774191034378,-414.8479281,0.0001047,2]
[408748303,1774191034387,-300.0,0.00010484,2]
[408748304,1774191034396,-300.0,0.00010484,2]
[408748305,1774191034405,-250.0,0.00010486,2]
[408748306,1774191034414,-300.0,0.00010486,2]
[408748307,1774191034424,-303.28849393,0.00010487,2]
[408748308,1774191034437,-500.0,0.00010539,2]
[408748309,1774191034447,-414.8479281,0.00010553,2]
[408748310,1774191034457,-2429.8807,0.00010554,2]
[408748311,1774191034468,-399.07887743,0.00010554,2]
[408748312,1774191034478,-11339.81312745,0.00010573,2]
[408748313,1774191034487,-400.0,0.000106,3]
[408748314,1774191034496,-2500.0,0.00010619,2]
[408748315,1774191034505,-392.48943774,0.00010644,2]
[408748316,1774191034514,-500.0,0.00010653,2]
[408748317,1774191034523,-259.26977142,0.00010653,2]
[408748318,1774191034533,-500.0,0.00010653,2]
[408748319,1774191034542,-393.36159119,0.00010653,2]
[408748320,1774191034551,-500.0,0.00010653,2]
[408748321,1774191034561,-500.0,0.00010653,2]
[408748322,1774191034570,-500.0,0.00010653,2]
[408748323,1774191034580,-500.0,0.00010653,2]
[408748324,1774191034589,-500.0,0.00010653,2]
[408748325,1774191034598,-374.73860031,0.00010653,2]
[408748326,1774191034607,-500.0,0.00010653,2]
[408748327,1774191034616,-500.0,0.00010653,2]
[408748328,1774191034626,-307.22492833,0.00010653,2]
[408748329,1774191034635,-500.0,0.00010653,2]
[408748330,1774191034644,-500.0,0.00010653,2]
[408748331,1774191034653,-500.0,0.00010653,2]
[408748332,1774191034662,-500.0,0.00010653,2]
[408748333,1774191034676,-500.0,0.00010653,2]
[408748334,1774191034685,-500.0,0.00010653,2]
[408748335,1774191034694,-500.0,0.00010653,2]
[408748336,1774191034703,-500.0,0.00010653,2]
[408748337,1774191034713,-500.0,0.00010653,2]
[408748338,1774191034722,-500.0,0.00010653,2]
[408748339,1774191034731,-500.0,0.00010653,2]
[408748340,1774191034742,-500.0,0.00010653,2]
[408748341,1774191034751,-500.0,0.00010653,2]
[408748342,1774191034760,-500.0,0.00010653,2]
[408748343,1774191034771,-500.0,0.00010653,2]
[408748344,1774191034781,-500.0,0.00010653,2]
[408748345,1774191034793,-500.0,0.00010653,2]
[408748346,1774191034802,-500.0,0.00010653,2]
[408748347,1774191034811,-500.0,0.00010653,2]
[408748348,1774191034829,-500.0,0.00010653,2]
[408748349,1774191034842,-500.0,0.00010653,2]
[408748350,1774191034852,-500.0,0.00010653,2]
[408748351,1774191034863,-500.0,0.00010653,2]
[408748352,1774191034873,-500.0,0.00010653,2]
[408748353,1774191034883,-500.0,0.00010653,2]
[408748354,1774191034892,-500.0,0.00010653,2]
[408748355,1774191034903,-500.0,0.00010653,2]
[408748356,1774191034912,-500.0,0.00010653,2]
[408748357,1774191034921,-500.0,0.00010653,2]
[408748358,1774191034930,-500.0,0.00010653,2]
[408748359,1774191034939,-500.0,0.00010653,2]
[408748360,1774191034948,-500.0,0.00010653,2]
[408748361,1774191034957,-500.0,0.00010653,2]
[408748362,1774191034966,-500.0,0.00010653,2]
[408748363,1774191034980,-500.0,0.00010653,2]
[408748364,1774191034996,-500.0,0.00010653,2]
[408748365,1774191035005,-500.0,0.00010653,2]
[408748366,1774191035014,-500.0,0.00010653,2]
[408748367,1774191035024,-500.0,0.00010653,2]
[408748368,1774191035033,-500.0,0.00010653,2]
[408748369,1774191035042,-500.0,0.00010653,2]
[408748370,1774191035052,-500.0,0.00010653,2]
[408748371,1774191035061,-500.0,0.00010653,2]
[408748372,1774191035070,-500.0,0.00010653,2]
[408748373,1774191035079,-500.0,0.00010653,2]
[408748374,1774191035091,-500.0,0.00010653,2]
[408748375,1774191035101,-500.0,0.00010653,2]
[408748376,1774191035110,-500.0,0.00010653,2]
[408748377,1774191035119,-500.0,0.00010653,2]
[408748378,1774191035128,-500.0,0.00010653,2]
[408748379,1774191035138,-500.0,0.00010653,2]
[408748380,1774191035147,-500.0,0.00010653,2]
[408748381,1774191035156,-500.0,0.00010653,2]
[408748382,1774191035165,-164.410088,0.00010653,2]
[408748383,1774191035175,-500.0,0.00010653,2]
[408748384,1774191035184,-270.61716898,0.00010653,2]
[408748385,1774191035194,-500.0,0.00010653,2]
[408748386,1774191035203,-500.0,0.00010653,2]
[408748387,1774191035213,-500.0,0.00010653,2]
[408748388,1774191035223,-500.0,0.00010653,2]
[408748389,1774191035233,-500.0,0.00010653,2]
[408748390,1774191035242,-500.0,0.00010653,2]
[408748391,1774191035252,-500.0,0.00010653,2]
[408748392,1774191035264,-500.0,0.00010653,2]
[408748393,1774191035284,-500.0,0.00010653,2]
[408748394,1774191035302,-500.0,0.00010653,2]
[408748395,1774191035317,-366.87310757,0.00010653,2]
[408748396,1774191035326,-500.0,0.00010653,2]
[408748397,1774191035335,-500.0,0.00010653,2]
[408748398,1774191035345,-500.0,0.00010653,2]
[408748399,1774191035354,-500.0,0.00010653,2]
[408748400,1774191035363,-500.0,0.00010653,2]
[408748401,1774191035372,-500.0,0.00010653,2]
[408748402,1774191035381,-500.0,0.00010653,2]
[408748403,1774191035390,-500.0,0.00010653,2]
[408748404,1774191035400,-500.0,0.00010653,2]
[408748405,1774191035414,-500.0,0.00010653,2]
[408748406,1774191035423,-207.72340072,0.00010653,2]
[408748407,1774191035432,-500.0,0.00010653,2]
[408748408,1774191035442,-500.0,0.00010653,2]
[408748409,1774191035451,-500.0,0.00010653,2]
[408748410,1774191035460,-500.0,0.00010653,2]
[408748411,1774191035470,-500.0,0.00010653,2]
[408748412,1774191035479,-500.0,0.00010653,2]
[408748413,1774191035488,-500.0,0.00010653,2]
[408748414,1774191035497,-500.0,0.00010653,2]
[408748415,1774191035507,-500.0,0.00010653,2]
[408748416,1774191035516,-500.0,0.00010653,2]
[408748417,1774191035526,-500.0,0.00010653,2]
[408748418,1774191035535,-500.0,0.00010653,2]
[408748419,1774191035545,-500.0,0.00010653,2]
[408748420,1774191035554,-500.0,0.00010653,2]
[408748421,1774191035564,-500.0,0.00010653,2]
[408748422,1774191035573,-1515.31936827,0.00010653,2]
[408748423,1774191035583,-1515.31936827,0.00010653,2]
[408748424,1774191035593,-164.04486478,0.00010653,2]
[408748425,1774191035603,-500.0,0.00010653,2]
[408748426,1774191035613,-500.0,0.00010653,2]
[408748427,1774191035622,-430.43280232,0.00010653,2]
[408748428,1774191035632,-500.0,0.00010653,2]
[408748429,1774191035642,-520.57005659,0.00010653,2]
[408748430,1774191035651,-500.0,0.00010653,2]
[408748431,1774191035661,-500.0,0.00010653,2]
[408748432,1774191035676,-500.0,0.00010653,2]
[408748433,1774191035686,-520.57005659,0.00010653,2]
[408748434,1774191035697,-1520.57005659,0.00010653,2]
[408748435,1774191035707,-150.0,0.00010653,2]
[408748436,1774191035719,-5100.0,0.00010654,2]
[408748437,1774191035729,-375641.93691321,0.00010654,2]
[408748438,1774191035747,-118923.34191828,0.00010654,2]
[408748439,1774191035759,-108821.42162798,0.00010654,2]
[408748441,1774191038097,-388.9509396,0.00010654,2]
[408748442,1774191038110,-7927.1168726,0.00010654,2]
[408748443,1774191038159,-3600.0,0.00010654,2]
[408748444,1774191038172,-79532.41127778,0.00010654,2]
[408748445,1774191038222,-671.07308538,0.00010654,2]
[408748446,1774191038234,-740.15989915,0.00010654,2]
[408748447,1774191038246,-1401.9124575,0.00010654,2]
[408748448,1774191038258,-1000.18778537,0.00010654,2]
[408748449,1774191038270,-865.69,0.00010654,2]
[408748450,1774191038284,-1057.47540344,0.00010654,2]
[408748451,1774191038309,-72299.99999991,0.00010654,2]
[408748480,1774191040353,-587.835,0.00010654,2]
[408748481,1774191040366,-726540.4868198,0.00010654,2]
[408748482,1774191040376,-165.9029998,0.00010673,2]
[408748483,1774191040386,-500.0,0.00010673,2]
[408748484,1774191040396,-500.0,0.00010673,2]
[408748485,1774191040406,-500.48919478,0.00010673,2]
[408748486,1774191040416,-314.25079956,0.00010673,2]
[408748487,1774191040427,-503.08076831,0.00010673,2]
[408748488,1774191040437,-500.0,0.00010673,2]
[408748489,1774191040446,-500.0,0.00010673,2]
[408748490,1774191040456,-500.0,0.00010673,2]
[408748491,1774191040465,-500.0,0.00010673,2]
[408748492,1774191040475,-500.0,0.00010673,2]
[408748493,1774191040486,-900.0,0.000107,3]
[408748494,1774191040495,-174749.95121889,0.00010719,2]
[408748495,1774191040505,-4999.99,0.00010719,2]
[408748496,1774191040514,-57587.4,0.00010719,2]
[408748497,1774191040524,-150.99,0.00010719,2]
[408748498,1774191040534,-488826.02388814,0.00010754,2]
[408748499,1774191040544,-1310.93525358,0.00010754,2]
[408748500,1774191040554,-500.0,0.00010754,2]
[408748501,1774191040564,-500.0,0.00010773,2]
[408748502,1774191040574,-167.52277852,0.00010773,2]
[408748503,1774191040584,-2172.51,0.00010773,2]
[408748504,1774191040593,-9999.99,0.00010773,2]
[408748505,1774191040603,-9999.99,0.00010773,2]
[408748506,1774191040613,-500.0,0.00010773,2]
[408748507,1774191040623,-500.80069878,0.00010773,2]
[408748508,1774191040632,-500.0,0.00010773,2]
[408748509,1774191040642,-500.0,0.00010773,2]
[408748510,1774191040651,-500.0,0.00010773,2]
[408748511,1774191040661,-1400.0,0.000108,3]
[408748512,1774191040675,-82653.4509949,0.00010827,2]
[408748513,1774191040686,-206.0,0.00010841,2]
[408748514,1774191040695,-999.99,0.00010844,2]
[408748515,1774191040705,-9441.15,0.00010844,2]
[408748516,1774191040717,-150.99,0.00010844,2]
[408748517,1774191040727,-9999.99,0.00010844,2]
[408748518,1774191040737,-4619.96,0.00010844,2]
[408748519,1774191040748,-499.99,0.00010844,2]
[408748520,1774191040758,-299.99,0.00010844,2]
[408748521,1774191040767,-9999.99,0.00010847,2]
[408748522,1774191040777,-151.0,0.00010847,2]
[408748523,1774191040787,-151.0,0.00010847,2]
[408748524,1774191040797,-151.0,0.00010847,2]
[408748525,1774191040807,-151.0,0.00010847,2]
[408748526,1774191040817,-151.0,0.00010847,2]
[408748528,1774191040826,-151.0,0.00010847,2]
[408748530,1774191040836,-151.0,0.00010847,2]
[408748532,1774191040846,-151.0,0.00010847,2]
[408748534,1774191040855,-151.0,0.00010847,2]
[408748536,1774191040865,-151.0,0.00010847,2]
[408748537,1774191040875,-151.0,0.00010847,2]
[408748539,1774191040885,-151.0,0.00010847,2]
[408748541,1774191040894,-500.0,0.00010847,2]
[408748543,1774191040904,-500.0,0.00010847,2]
[408748544,1774191040914,-500.0,0.00010847,2]
[408748545,1774191040924,-500.0,0.00010847,2]
[408748546,1774191040934,-500.0,0.00010847,2]
[408748547,1774191040944,-500.0,0.00010847,2]
[408748548,1774191040955,-500.0,0.00010847,2]
[408748549,1774191040965,-500.0,0.00010847,2]
[408748550,1774191040975,-500.0,0.00010847,2]
[408748551,1774191040985,-500.0,0.00010847,2]
[408748552,1774191040995,-500.0,0.00010847,2]
[408748553,1774191041005,-500.0,0.00010847,2]
[408748554,1774191041015,-500.0,0.00010847,2]
[408748555,1774191041027,-500.0,0.00010847,2]
[408748556,1774191041036,-151.0,0.00010847,2]
[408748557,1774191041046,-500.0,0.00010847,2]
[408748558,1774191041056,-151.0,0.00010847,2]
[408748559,1774191041066,-500.0,0.00010847,2]
[408748560,1774191041077,-200.0,0.00010847,2]
[408748561,1774191041087,-151.0,0.00010847,2]
[408748562,1774191041098,-500.0,0.00010847,2]
[408748563,1774191041108,-151.0,0.00010847,2]
[408748564,1774191041118,-500.0,0.00010847,2]
[408748565,1774191041128,-151.0,0.00010847,2]
[408748566,1774191041137,-500.0,0.00010847,2]
[408748567,1774191041147,-151.0,0.00010847,2]
[408748568,1774191041157,-500.0,0.00010847,2]
[408748569,1774191041167,-151.0,0.00010847,2]
[408748570,1774191041177,-500.0,0.00010847,2]
[408748571,1774191041187,-151.0,0.00010847,2]
[408748572,1774191041196,-500.0,0.00010847,2]